fUSD/lending_fUSD_20240519
["ID","MTS","AMOUNT","RATE_DAILY","PERIOD"]
[327469801,1716096655207,-500.0,0.00027397,2]
[327469802,1716096655217,-500.0,0.00027397,2]
[327469803,1716096655227,-299.28116145,0.00027397,2]
[327469804,1716096655236,-500.0,0.00027397,2]
[327469805,1716096655251,-500.0,0.00027397,2]
[327469806,1716096655261,-692.36,0.00027397,2]
[327469807,1716096655270,-500.0,0.00027397,2]
[327469808,1716096655280,-568.49046818,0.00027397,2]
[327469809,1716096655291,-500.0,0.00027397,2]
[327469810,1716096655301,-593.64,0.00027397,2]
[327469811,1716096655311,-500.0,0.00027397,2]
[327469812,1716096655324,-500.0,0.00027397,2]
[327469813,1716096655334,-500.0,0.00027397,2]
[327469814,1716096655343,-1321.47,0.00027397,2]
[327469815,1716096655353,-500.0,0.00027397,2]
[327469816,1716096655363,-569.2,0.00027397,2]
[327469817,1716096655372,-608.9,0.00027397,2]
[327469818,1716096655382,-500.0,0.00027397,2]
[327469819,1716096655392,-513.74570716,0.00027397,2]
[327469820,1716096655402,-710.42,0.00027397,2]
[327469821,1716096655412,-1061.35,0.00027397,2]
[327469822,1716096655422,-978.79,0.00027397,2]
[327469823,1716096655431,-647.83,0.00027397,2]
[327469824,1716096655441,-500.0,0.00027397,2]
[327469825,1716096655451,-518.17198257,0.00027397,2]
[327469826,1716096655461,-500.0,0.00027397,2]
[327469827,1716096655470,-500.0,0.00027397,2]
[327469828,1716096655480,-500.0,0.00027397,2]
[327469829,1716096655490,-950.0,0.00027397,2]
[327469830,1716096655501,-535.28,0.00027397,2]
[327469831,1716096655510,-519.91277188,0.00027397,2]
[327469832,1716096655520,-500.0,0.00027397,2]
[327469833,1716096655530,-500.71,0.00027397,2]
[327469834,1716096655540,-785.4,0.00027397,2]
[327469835,1716096655550,-500.0,0.00027397,2]
[327469836,1716096655559,-526.51454224,0.00027397,2]
[327469837,1716096655569,-500.0,0.00027397,2]
[327469838,1716096655579,-500.0,0.00027397,2]
[327469839,1716096655588,-151.0,0.00027397,7]
[327469840,1716096655598,-550.97864467,0.00027397,2]
[327469841,1716096655608,-151.0,0.00027397,7]
[327469842,1716096655618,-151.0,0.00027397,7]
[327469843,1716096655627,-205.384912,0.00027397,7]
[327469844,1716096655637,-500.0,0.00027397,2]
[327469845,1716096655647,-500.0,0.00027397,2]
[327469846,1716096655657,-151.0,0.00027397,7]
[327469847,1716096655667,-627.31527643,0.00027397,2]
[327469848,1716096655676,-500.0,0.00027397,2]
[327469849,1716096655686,-504.56856693,0.00027397,2]
[327469850,1716096655696,-702.75,0.00027397,2]
[327469851,1716096655705,-500.0,0.00027397,2]
[327469852,1716096655715,-722.15,0.00027397,2]
[327469853,1716096655725,-500.0,0.00027397,2]
[327469854,1716096655735,-530.23864017,0.00027397,2]
[327469855,1716096655745,-545.85434741,0.00027397,2]
[327469856,1716096655755,-500.0,0.00027397,2]
[327469857,1716096655765,-500.0,0.00027397,2]
[327469858,1716096655774,-500.0,0.00027397,2]
[327469859,1716096655783,-500.0,0.00027397,2]
[327469860,1716096655793,-500.0,0.00027397,2]
[327469861,1716096655802,-538.38935595,0.00027397,2]
[327469862,1716096655812,-1004.7,0.00027397,2]
[327469863,1716096655821,-519.51087309,0.00027397,2]
[327469864,1716096655831,-500.0,0.00027397,2]
[327469865,1716096655840,-537.62669431,0.00027397,2]
[327469866,1716096655850,-616.90587215,0.00027397,2]
[327469867,1716096655860,-530.91972961,0.00027397,2]
[327469868,1716096655871,-500.0,0.00027397,2]
[327469869,1716096655880,-517.83668521,0.00027397,2]
[327469870,1716096655890,-500.0,0.00027397,2]
[327469871,1716096655901,-500.0,0.00027397,2]
[327469872,1716096655911,-500.0,0.00027397,2]
[327469873,1716096655920,-2362.62,0.00027397,2]
[327469874,1716096655929,-532.24161461,0.00027397,2]
[327469875,1716096655939,-500.0,0.00027397,2]
[327469876,1716096655949,-507.93403154,0.00027397,2]
[327469877,1716096655958,-519.66913188,0.00027397,2]
[327469878,1716096655969,-500.0,0.00027397,2]
[327469879,1716096655978,-670.97,0.00027397,2]
[327469880,1716096655988,-554.3910918,0.00027397,2]
[327469881,1716096655998,-500.0,0.00027397,2]
[327469882,1716096656007,-500.0,0.00027397,2]
[327469883,1716096656017,-500.0,0.00027397,2]
[327469884,1716096656026,-500.0,0.00027397,2]
[327469885,1716096656036,-523.04392828,0.00027397,2]
[327469886,1716096656045,-500.0,0.00027397,2]
[327469887,1716096656055,-1194.79,0.00027397,2]
[327469888,1716096656064,-500.0,0.00027397,2]
[327469889,1716096656074,-522.5856865,0.00027397,2]
[327469890,1716096656083,-500.0,0.00027397,2]
[327469891,1716096656093,-500.0,0.00027397,2]
[327469892,1716096656102,-517.88464608,0.00027397,2]
[327469893,1716096656112,-500.0,0.00027397,2]
[327469894,1716096656121,-3941.53,0.00027397,2]
[327469895,1716096656131,-1679.99,0.00027397,2]
[327469896,1716096656141,-721.58,0.00027397,2]
[327469897,1716096656150,-500.0,0.00027397,2]
[327469898,1716096656160,-500.0,0.00027397,2]
[327469899,1716096656169,-500.0,0.00027397,2]
[327469900,1716096656178,-500.0,0.00027397,2]
[327469901,1716096656235,-500.0,0.00027397,2]
[327469902,1716096656248,-500.0,0.00027397,2]
[327469903,1716096656258,-529.31877907,0.00027397,2]
[327469904,1716096656268,-500.0,0.00027397,2]
[327469905,1716096656277,-522.70309199,0.00027397,2]
[327469906,1716096656286,-1249.9,0.00027397,2]
[327469907,1716096656299,-638.90808859,0.00027397,2]
[327469908,1716096656309,-500.0,0.00027397,2]
[327469909,1716096656319,-814.44,0.00027397,2]
[327469910,1716096656329,-636.23,0.00027397,2]
[327469911,1716096656339,-500.0,0.00027397,2]
[327469912,1716096656349,-1499.69,0.00027397,2]
[327469913,1716096656358,-1155.15,0.00027397,2]
[327469914,1716096656368,-683.18,0.00027397,2]
[327469915,1716096656378,-500.0,0.00027397,2]
[327469916,1716096656388,-683.17,0.00027397,2]
[327469917,1716096656398,-151.0,0.00027397,7]
[327469918,1716096656408,-528.88395474,0.00027397,2]
[327469919,1716096656418,-1096.96,0.00027397,2]
[327469920,1716096656427,-2978.31,0.00027397,2]
[327469921,1716096656437,-500.0,0.00027397,2]
[327469922,1716096656446,-500.0,0.00027397,2]
[327469923,1716096656455,-803.21,0.00027397,2]
[327469924,1716096656464,-500.0,0.00027397,2]
[327469925,1716096656474,-500.0,0.00027397,2]
[327469926,1716096656483,-915.09,0.00027397,2]
[327469927,1716096656491,-548.07461371,0.00027397,2]
[327469928,1716096656502,-1646.34,0.00027397,2]
[327469929,1716096656511,-500.0,0.00027397,2]
[327469930,1716096656520,-525.79882789,0.00027397,2]
[327469931,1716096656530,-4650.71,0.00027397,2]
[327469932,1716096656541,-525.51491967,0.00027397,2]
[327469933,1716096656551,-500.0,0.00027397,2]
[327469934,1716096656561,-580.76,0.00027397,2]
[327469935,1716096656570,-500.0,0.00027397,2]
[327469936,1716096656580,-508.39054598,0.00027397,2]
[327469937,1716096656591,-519.85747405,0.00027397,2]
[327469938,1716096656602,-1273.94,0.00027397,2]
[327469939,1716096656611,-543.57145947,0.00027397,2]
[327469940,1716096656621,-1269.82,0.00027397,2]
[327469941,1716096656630,-496.42122861,0.00027397,2]
[327469942,1716096656640,-500.0,0.00027397,2]
[327469943,1716096656649,-500.0,0.00027397,2]
[327469944,1716096656660,-1715.41,0.00027397,2]
[327469945,1716096656670,-500.0,0.00027397,2]
[327469946,1716096656679,-500.0,0.00027397,2]
[327469947,1716096656689,-500.0,0.00027397,2]
[327469948,1716096656699,-500.0,0.00027397,2]
[327469949,1716096656709,-500.0,0.00027397,2]
[327469950,1716096656719,-1545.04,0.00027397,2]
[327469951,1716096656729,-553.55489507,0.00027397,2]
[327469952,1716096656739,-500.0,0.00027397,2]
[327469953,1716096656750,-500.0,0.00027397,2]
[327469954,1716096656760,-3492.97,0.00027397,2]
[327469955,1716096656768,-744.54,0.00027397,2]
[327469956,1716096656777,-500.0,0.00027397,2]
[327469957,1716096656787,-500.0,0.00027397,2]
[327469958,1716096656796,-526.68487063,0.00027397,2]
[327469959,1716096656805,-689.34,0.00027397,2]
[327469960,1716096656815,-524.99149557,0.00027397,2]
[327469961,1716096656825,-508.27509246,0.00027397,2]
[327469962,1716096656834,-500.0,0.00027397,2]
[327469963,1716096656846,-596.27,0.00027397,2]
[327469964,1716096656856,-526.40033511,0.00027397,2]
[327469965,1716096656867,-198.70179297,0.00027397,2]
[327469966,1716096656875,-500.0,0.00027397,2]
[327469967,1716096656884,-612.9802687,0.00027397,2]
[327469968,1716096656894,-522.8029803,0.00027397,2]
[327469969,1716096656904,-525.19419647,0.00027397,2]
[327469970,1716096656914,-1131.87,0.00027397,2]
[327469971,1716096656923,-500.0,0.00027397,2]
[327469972,1716096656932,-547.90212428,0.00027397,2]
[327469973,1716096656941,-521.94907978,0.00027397,2]
[327469974,1716096656950,-521.43825521,0.00027397,2]
[327469975,1716096656961,-531.27460828,0.00027397,2]
[327469976,1716096656970,-500.0,0.00027397,2]
[327469977,1716096656979,-500.0,0.00027397,2]
[327469978,1716096656988,-500.0,0.00027397,2]
[327469979,1716096656998,-521.39611624,0.00027397,2]
[327469980,1716096657007,-500.0,0.00027397,2]
[327469981,1716096657016,-513.05357885,0.00027397,2]
[327469982,1716096657026,-599.51,0.00027397,2]
[327469983,1716096657034,-500.0,0.00027397,2]
[327469984,1716096657044,-527.19559731,0.00027397,2]
[327469985,1716096657053,-500.0,0.00027397,2]
[327469986,1716096657062,-525.32280256,0.00027397,2]
[327469987,1716096657071,-500.0,0.00027397,2]
[327469988,1716096657080,-500.0,0.00027397,2]
[327469989,1716096657089,-10906.7,0.00027397,2]
[327469990,1716096657098,-583.32563207,0.00027397,2]
[327469991,1716096657107,-500.0,0.00027397,2]
[327469992,1716096657116,-500.0,0.00027397,2]
[327469993,1716096657125,-500.0,0.00027397,2]
[327469994,1716096657134,-634.50652349,0.00027397,2]
[327469995,1716096657143,-333.48721368,0.00027397,2]
[327469996,1716096657151,-500.0,0.00027397,2]
[327469997,1716096657160,-823.38,0.00027397,2]
[327469998,1716096657169,-524.44,0.00027397,2]
[327469999,1716096657178,-511.60850336,0.00027397,2]
[327470000,1716096657187,-543.46966377,0.00027397,2]
[327470001,1716096657196,-14927.02,0.00027397,2]
[327470002,1716096657205,-500.0,0.00027397,2]
[327470003,1716096657214,-500.0,0.00027397,2]
[327470004,1716096657224,-500.0,0.00027397,2]
[327470005,1716096657233,-526.17737013,0.00027397,2]
[327470006,1716096657243,-500.0,0.00027397,2]
[327470007,1716096657255,-530.69847401,0.00027397,2]
[327470008,1716096657264,-500.0,0.00027397,2]
[327470009,1716096657276,-523.45961043,0.00027397,2]
[327470010,1716096657287,-500.0,0.00027397,2]
[327470011,1716096657296,-500.0,0.00027397,2]
[327470012,1716096657305,-2690.46,0.00027397,2]
[327470013,1716096657314,-604.99526723,0.00027397,2]
[327470014,1716096657326,-500.0,0.00027397,2]
[327470015,1716096657335,-527.46510033,0.00027397,2]
[327470016,1716096657344,-4000.0,0.00027397,2]
[327470017,1716096657354,-500.0,0.000274,2]
[327470018,1716096657364,-150.11,0.000274,2]
[327470019,1716096657373,-150.11,0.000274,2]
[327470020,1716096657382,-150.11,0.000274,2]
[327470021,1716096657391,-150.11,0.000274,2]
[327470022,1716096657400,-150.11,0.000274,2]
[327470023,1716096657409,-150.11,0.000274,2]
[327470024,1716096657418,-155.13324533,0.00027431,2]
[327470025,1716096657428,-150.0,0.00027446,2]
[327470026,1716096657437,-157.051911,0.00027448,8]
[327470027,1716096657447,-150.0,0.00027491,2]
[327470028,1716096657455,-150.0,0.00027521,2]
[327470029,1716096657464,-150.0,0.00027531,2]
[327470030,1716096657474,-150.0,0.00027543,2]
[327470031,1716096657483,-150.0,0.00027565,2]
[327470032,1716096657492,-150.0,0.00027579,7]
[327470033,1716096657502,-150.0,0.00027585,2]
[327470034,1716096657511,-150.0,0.0002763,2]
[327470035,1716096657521,-150.5,0.00027641,15]
[327470036,1716096657530,-150.5,0.00027641,15]
[327470037,1716096657539,-150.5,0.00027651,15]
[327470038,1716096657549,-150.5,0.00027651,15]
[327470039,1716096657558,-150.0,0.0002766,2]
[327470040,1716096657567,-150.5,0.00027661,15]
[327470041,1716096657576,-150.5,0.00027661,15]
[327470042,1716096657585,-500.0,0.0002767,2]
[327470043,1716096657595,-500.0,0.0002767,2]
[327470044,1716096657604,-510.77285092,0.00027671,2]
[327470045,1716096657613,-542.00577091,0.00027671,2]
[327470046,1716096657623,-533.69339939,0.00027671,2]
[327470047,1716096657632,-429.69276626,0.00027671,2]
[327470048,1716096657642,-500.0,0.00027671,2]
[327470049,1716096657651,-271.02006267,0.00027671,2]
[327470050,1716096657660,-240.18552903,0.00027671,2]
[327470051,1716096657669,-500.0,0.00027671,2]
[327470052,1716096657679,-500.0,0.00027671,2]
[327470053,1716096657688,-552.44337632,0.00027671,2]
[327470054,1716096657697,-170.76056737,0.00027671,2]
[327470055,1716096657706,-259.12313372,0.00027671,2]
[327470056,1716096657715,-371.88174031,0.00027671,2]
[327470057,1716096657725,-502.8159743,0.00027671,2]
[327470058,1716096657734,-500.0,0.00027671,2]
[327470059,1716096657743,-500.0,0.00027671,2]
[327470060,1716096657753,-678.19,0.00027671,2]
[327470061,1716096657762,-500.0,0.00027671,2]
[327470062,1716096657771,-500.0,0.00027671,2]
[327470063,1716096657780,-500.0,0.00027671,2]
[327470064,1716096657790,-500.0,0.00027671,2]
[327470065,1716096657799,-367.82419123,0.00027671,2]
[327470066,1716096657808,-171.27910168,0.00027671,2]
[327470067,1716096657817,-518.5,0.00027671,2]
[327470068,1716096657826,-626.76543211,0.00027671,2]
[327470069,1716096657836,-237.34193008,0.00027671,2]
[327470070,1716096657846,-500.0,0.00027671,2]
[327470071,1716096657855,-155.78401228,0.00027671,2]
[327470072,1716096657865,-536.54763464,0.00027671,2]
[327470073,1716096657873,-500.0,0.00027671,2]
[327470074,1716096657882,-520.50092049,0.00027671,2]
[327470075,1716096657892,-530.28810284,0.00027671,2]
[327470076,1716096657902,-532.31906242,0.00027671,2]
[327470077,1716096657911,-475.75867857,0.00027671,2]
[327470078,1716096657920,-154.14931519,0.00027671,2]
[327470079,1716096657929,-533.52287009,0.00027671,2]
[327470080,1716096657939,-520.69227399,0.00027671,2]
[327470081,1716096657948,-500.0,0.00027671,2]
[327470082,1716096657958,-569.80108603,0.00027671,2]
[327470083,1716096657968,-500.0,0.00027671,2]
[327470084,1716096657977,-500.0,0.00027671,2]
[327470085,1716096657987,-522.92050604,0.00027671,2]
[327470086,1716096658000,-500.0,0.00027671,2]
[327470087,1716096658009,-500.0,0.00027671,2]
[327470088,1716096658019,-500.0,0.00027671,2]
[327470089,1716096658028,-500.0,0.00027671,2]
[327470090,1716096658038,-439.64454224,0.00027671,2]
[327470091,1716096658047,-500.0,0.00027671,2]
[327470092,1716096658057,-205.0418736,0.00027671,2]
[327470093,1716096658067,-500.0,0.00027671,2]
[327470094,1716096658077,-167.28367939,0.00027671,2]
[327470095,1716096658087,-316.4304116,0.00027671,2]
[327470096,1716096658096,-500.0,0.00027671,2]
[327470097,1716096658106,-415.25009838,0.00027671,2]
[327470098,1716096658116,-500.0,0.00027671,2]
[327470099,1716096658126,-500.0,0.00027671,2]
[327470100,1716096658137,-241.50078748,0.00027671,2]
[327470101,1716096658147,-563.50078202,0.00027671,2]
[327470102,1716096658156,-500.0,0.00027671,2]
[327470103,1716096658166,-500.0,0.00027671,2]
[327470104,1716096658176,-500.0,0.00027671,2]
[327470105,1716096658186,-567.85750842,0.00027671,2]
[327470106,1716096658196,-500.0,0.00027671,2]
[327470107,1716096658206,-181.40649806,0.00027671,2]
[327470108,1716096658216,-500.0,0.00027671,2]
[327470109,1716096658225,-270.86482381,0.00027671,2]
[327470110,1716096658235,-155.89804935,0.00027671,2]
[327470111,1716096658249,-336.07095589,0.00027671,2]
[327470112,1716096658258,-500.0,0.00027671,2]
[327470113,1716096658268,-500.0,0.00027671,2]
[327470114,1716096658277,-500.0,0.00027671,2]
[327470115,1716096658287,-416.96784474,0.00027671,2]
[327470116,1716096658297,-500.0,0.00027671,2]
[327470117,1716096658307,-500.0,0.00027671,2]
[327470118,1716096658317,-372.1841007,0.00027671,2]
[327470119,1716096658330,-500.0,0.00027671,2]
[327470120,1716096658340,-486.87710971,0.00027671,2]
[327470121,1716096658350,-285.63688365,0.00027671,2]
[327470122,1716096658359,-193.17028326,0.00027671,2]
[327470123,1716096658369,-500.0,0.00027671,2]
[327470124,1716096658379,-323.86282175,0.00027671,2]
[327470125,1716096658389,-210.79492971,0.00027671,2]
[327470126,1716096658399,-500.0,0.00027671,2]
[327470127,1716096658408,-500.0,0.00027671,2]
[327470128,1716096658419,-500.0,0.00027671,2]
[327470129,1716096658428,-240.1136089,0.00027671,2]
[327470130,1716096658438,-594.98932421,0.00027671,2]
[327470131,1716096658448,-398.7197043,0.00027671,2]
[327470132,1716096658458,-500.0,0.00027671,2]
[327470133,1716096658467,-383.60168678,0.00027671,2]
[327470134,1716096658477,-606.8178019,0.00027671,2]
[327470135,1716096658487,-500.0,0.00027671,2]
[327470136,1716096658497,-500.0,0.00027671,2]
[327470137,1716096658508,-559.38410106,0.00027671,2]
[327470138,1716096658518,-500.0,0.00027671,2]
[327470139,1716096658527,-558.28743719,0.00027671,2]
[327470140,1716096658537,-661.01,0.00027671,2]
[327470141,1716096658547,-500.0,0.00027671,2]
[327470142,1716096658556,-500.0,0.00027671,2]
[327470143,1716096658566,-552.6749025,0.00027671,2]
[327470144,1716096658576,-326.78433393,0.00027671,2]
[327470145,1716096658586,-500.0,0.00027671,2]
[327470146,1716096658596,-500.0,0.00027671,2]
[327470147,1716096658606,-500.0,0.00027671,2]
[327470148,1716096658616,-500.0,0.00027671,2]
[327470149,1716096658626,-500.0,0.00027671,2]
[327470150,1716096658636,-500.0,0.00027671,2]
[327470151,1716096658646,-579.40020408,0.00027671,2]
[327470152,1716096658655,-500.0,0.00027671,2]
[327470153,1716096658664,-500.0,0.00027671,2]
[327470154,1716096658674,-229.370434,0.00027671,7]
[327470155,1716096658684,-985.58,0.00027671,2]
[327470156,1716096658694,-229.370437,0.00027671,7]
[327470157,1716096658704,-500.0,0.00027671,2]
[327470158,1716096658714,-500.0,0.00027671,2]
[327470159,1716096658724,-500.0,0.00027671,2]
[327470160,1716096658734,-500.0,0.00027671,2]
[327470161,1716096658743,-500.0,0.00027671,2]
[327470162,1716096658754,-500.0,0.00027671,2]
[327470163,1716096658764,-500.0,0.00027671,2]
[327470164,1716096658773,-221.810461,0.00027671,7]
[327470165,1716096658783,-221.810461,0.00027671,7]
[327470166,1716096658793,-306.85874531,0.00027671,2]
[327470167,1716096658804,-500.0,0.00027671,2]
[327470168,1716096658814,-500.0,0.00027671,2]
[327470169,1716096658824,-500.0,0.00027671,2]
[327470170,1716096658835,-221.810461,0.00027671,7]
[327470171,1716096658845,-221.810456,0.00027671,7]
[327470172,1716096658855,-318.82019486,0.00027671,2]
[327470173,1716096658866,-500.0,0.00027671,2]
[327470174,1716096658875,-500.0,0.00027671,2]
[327470175,1716096658886,-187.86271301,0.00027671,2]
[327470176,1716096658895,-500.0,0.00027671,2]
[327470177,1716096658905,-500.0,0.00027671,2]
[327470178,1716096658915,-500.0,0.00027671,2]
[327470179,1716096658925,-500.0,0.00027671,2]
[327470180,1716096658935,-500.0,0.00027671,2]
[327470181,1716096658944,-500.0,0.00027671,2]
[327470182,1716096658954,-500.0,0.00027671,2]
[327470183,1716096658964,-500.0,0.00027671,2]
[327470184,1716096658975,-500.0,0.00027671,2]
[327470185,1716096658985,-500.0,0.00027671,2]
[327470186,1716096658995,-478.52536494,0.00027671,2]
[327470187,1716096659005,-500.0,0.00027671,2]
[327470188,1716096659015,-150.35397808,0.00027671,2]
[327470189,1716096659025,-500.0,0.00027671,2]
[327470190,1716096659035,-500.0,0.00027671,2]
[327470191,1716096659045,-189.71586604,0.00027671,2]
[327470192,1716096659055,-500.0,0.00027671,2]
[327470193,1716096659065,-500.0,0.00027671,2]
[327470194,1716096659075,-365.94825737,0.00027671,2]
[327470195,1716096659085,-500.0,0.00027671,2]
[327470196,1716096659095,-500.0,0.00027671,2]
[327470197,1716096659105,-500.0,0.00027671,2]
[327470198,1716096659114,-282.99711477,0.00027671,2]
[327470199,1716096659125,-500.0,0.00027671,2]
[327470200,1716096659134,-500.0,0.00027671,2]
[327470201,1716096659144,-500.0,0.00027671,2]
[327470202,1716096659154,-500.0,0.00027671,2]
[327470203,1716096659163,-513.35,0.00027671,2]
[327470204,1716096659173,-500.0,0.00027671,2]
[327470205,1716096659183,-563.29872112,0.00027671,2]
[327470206,1716096659192,-500.0,0.00027671,2]
[327470207,1716096659202,-500.0,0.00027671,2]
[327470208,1716096659212,-455.96304177,0.00027671,2]
[327470209,1716096659222,-500.0,0.00027671,2]
[327470210,1716096659231,-500.0,0.00027671,2]
[327470211,1716096659243,-500.0,0.00027671,2]
[327470212,1716096659254,-324.08945018,0.00027671,2]
[327470213,1716096659263,-500.0,0.00027671,2]
[327470214,1716096659273,-537.19126969,0.00027671,2]
[327470215,1716096659283,-534.96404232,0.00027671,2]
[327470216,1716096659294,-500.0,0.00027671,2]
[327470217,1716096659304,-563.24309002,0.00027671,2]
[327470218,1716096659313,-500.0,0.00027671,2]
[327470219,1716096659325,-500.0,0.00027671,2]
[327470220,1716096659335,-321.86578058,0.00027671,2]
[327470221,1716096659345,-500.0,0.00027671,2]
[327470222,1716096659355,-500.0,0.00027671,2]
[327470223,1716096659365,-611.21013997,0.00027671,2]
[327470224,1716096659375,-500.0,0.00027671,2]
[327470225,1716096659385,-1464.94,0.00027671,2]
[327470226,1716096659395,-199.73664582,0.00027671,2]
[327470227,1716096659406,-500.0,0.00027671,2]
[327470228,1716096659415,-500.0,0.00027671,2]
[327470229,1716096659426,-150.0,0.00027671,2]
[327470230,1716096659436,-500.0,0.00027671,2]
[327470231,1716096659446,-335.34978242,0.00027671,2]
[327470232,1716096659456,-500.0,0.00027671,2]
[327470233,1716096659466,-500.0,0.00027671,2]
[327470234,1716096659476,-500.0,0.00027671,2]
[327470235,1716096659486,-500.0,0.00027671,2]
[327470236,1716096659496,-500.0,0.00027671,2]
[327470237,1716096659506,-206.276888,0.00027671,7]
[327470238,1716096659516,-500.0,0.00027671,2]
[327470239,1716096659527,-500.0,0.00027671,2]
[327470240,1716096659537,-500.0,0.00027671,2]
[327470241,1716096659547,-293.23549616,0.00027671,2]
[327470242,1716096659557,-500.0,0.00027671,2]
[327470243,1716096659567,-206.276894,0.00027671,7]
[327470244,1716096659576,-578.81,0.00027671,2]
[327470245,1716096659586,-500.0,0.00027671,2]
[327470246,1716096659595,-500.0,0.00027671,2]
[327470247,1716096659605,-500.0,0.00027671,2]
[327470248,1716096659615,-500.0,0.00027671,2]
[327470249,1716096659625,-816.03,0.00027671,2]
[327470250,1716096659635,-500.0,0.00027671,2]
[327470251,1716096659644,-500.0,0.00027671,2]
[327470252,1716096659655,-500.0,0.00027671,2]
[327470253,1716096659664,-513.55,0.00027671,2]
[327470254,1716096659674,-500.0,0.00027671,2]
[327470255,1716096659683,-151.0,0.00027671,7]
[327470256,1716096659693,-151.0,0.00027671,7]
[327470257,1716096659703,-500.0,0.00027671,2]
[327470258,1716096659713,-500.0,0.00027671,2]
[327470259,1716096659722,-455.30364407,0.00027671,2]
[327470260,1716096659732,-500.0,0.00027671,2]
[327470261,1716096659742,-473.09245686,0.00027671,2]
[327470262,1716096659752,-562.34,0.00027671,2]
[327470263,1716096659762,-171.49224293,0.00027671,2]
[327470264,1716096659772,-201.71988637,0.00027671,2]
[327470265,1716096659782,-500.0,0.00027671,2]
[327470266,1716096659792,-500.0,0.00027671,2]
[327470267,1716096659802,-500.0,0.00027671,2]
[327470268,1716096659811,-500.0,0.00027671,2]
[327470269,1716096659821,-500.0,0.00027671,2]
[327470270,1716096659831,-500.0,0.00027671,2]
[327470271,1716096659840,-500.0,0.00027671,2]
[327470272,1716096659850,-500.0,0.00027671,2]
[327470273,1716096659859,-550.15895479,0.00027671,2]
[327470274,1716096659869,-1075.89,0.00027671,2]
[327470275,1716096659879,-500.0,0.00027671,2]
[327470276,1716096659889,-500.0,0.00027671,2]
[327470277,1716096659898,-500.0,0.00027671,2]
[327470278,1716096659908,-500.0,0.00027671,2]
[327470279,1716096659918,-500.0,0.00027671,2]
[327470280,1716096659927,-500.0,0.00027671,2]
[327470281,1716096659937,-218.319498,0.00027671,7]
[327470282,1716096659947,-500.0,0.00027671,2]
[327470283,1716096659959,-500.0,0.00027671,2]
[327470284,1716096659969,-218.319505,0.00027671,7]
[327470285,1716096659979,-500.0,0.00027671,2]
[327470286,1716096659989,-219.13317711,0.00027671,2]
[327470287,1716096659999,-500.0,0.00027671,2]
[327470288,1716096660009,-603.65223338,0.00027671,2]
[327470289,1716096660019,-424.41893889,0.00027671,2]
[327470290,1716096660028,-500.0,0.00027671,2]
[327470291,1716096660038,-567.45,0.00027671,2]
[327470292,1716096660048,-788.91,0.00027671,2]
[327470293,1716096660058,-500.0,0.00027671,2]
[327470294,1716096660068,-500.0,0.00027671,2]
[327470295,1716096660078,-173.11165545,0.00027671,2]
[327470296,1716096660088,-500.0,0.00027671,2]
[327470297,1716096660098,-500.0,0.00027671,2]
[327470298,1716096660258,-241.84412092,0.00027671,2]
[327470299,1716096660267,-500.0,0.00027671,2]
[327470300,1716096660279,-500.0,0.00027671,2]